bitfinex/quotes_ETHUSD_20260208
["timestamp","ask_amount","ask_price","bid_price","bid_amount"]
[1770520016008,0.002,2086.6,2086.0,0.91218894]
[1770520016203,0.002,2086.8,2086.1,0.91018894]
[1770520016834,0.002,2087.0,2086.3,0.91018894]
[1770520017211,0.002,2087.0,2085.9,6.57871261]
[1770520017212,0.002,2087.0,2086.5,0.91018894]
[1770520017918,0.002,2087.2,2086.6,2.11031028]
[1770520018226,0.002,2087.2,2086.7,0.91018894]
[1770520018428,0.0008,2087.4,2086.7,0.91018894]
[1770520018736,0.0008,2087.4,2086.8,0.91218894]
[1770520020333,0.0008,2087.4,2086.9,1.19794911]
[1770520021937,0.0008,2087.4,2087.0,0.91218894]
[1770520022137,1e-08,2087.7,2087.1,2.10802325]
[1770520022437,1e-08,2087.7,2087.2,0.91018894]
[1770520022612,1e-08,2087.7,2087.2,0.91218894]
[1770520023543,1e-08,2087.7,2087.2,0.002]
[1770520023724,0.04043864,2087.6,2087.0,1.19785335]
[1770520024034,0.56786033,2087.6,2087.0,0.002]
[1770520025617,1.76541905,2087.6,2086.7,1.19802676]
[1770520025818,0.56786033,2087.3,2086.9,0.002]
[1770520026115,0.52742169,2087.3,2086.9,0.002]
[1770520026515,1e-08,2087.7,2087.0,0.91584864]
[1770520026722,1e-08,2087.7,2087.0,2.11369986]
[1770520026937,1e-08,2087.7,2087.1,0.002]
[1770520028135,0.002,2087.4,2087.1,0.002]
[1770520030319,0.002,2087.4,2086.9,2.11379775]
[1770520030738,0.002,2087.4,2087.2,0.002]
[1770520031043,1e-08,2087.7,2087.2,0.91584864]
[1770520031246,0.002,2087.9,2087.4,5.3801892]
[1770520031414,0.002,2088.5,2087.6,0.91584864]
[1770520032843,0.002,2088.5,2087.8,0.98710028]
[1770520033141,0.002,2088.8,2087.8,0.98710028]
[1770520035048,0.002,2088.8,2088.0,0.98710028]
[1770520035950,0.002,2088.7,2088.0,0.98710028]
[1770520037042,0.0008,2089.0,2088.5,0.98710028]
[1770520037238,0.002,2089.4,2088.5,0.98710028]
[1770520038921,0.04043864,2089.0,2088.5,0.98710028]
[1770520039146,0.04043864,2089.0,2088.4,1.19708868]
[1770520039331,0.04043864,2089.0,2088.3,1.19712197]
[1770520039528,0.52742169,2089.1,2088.0,0.98710028]
[1770520039738,0.04043864,2089.0,2088.3,1.19714202]
[1770520040260,0.04043864,2088.7,2087.9,0.98710028]
[1770520040549,0.04043864,2088.7,2088.0,1.19728177]
[1770520040753,0.002,2088.5,2088.0,1.19728177]
[1770520041452,0.002,2088.5,2087.8,1.1974327]
[1770520045340,0.04043864,2088.1,2087.2,0.98810028]
[1770520045534,0.04043864,2087.8,2087.3,1.19766335]
[1770520045730,0.04043864,2088.1,2087.3,1.19766335]
[1770520046229,0.002,2088.5,2087.9,0.98710028]
[1770520046455,0.002,2088.7,2088.0,0.98710028]
[1770520047052,0.52942169,2089.4,2088.0,0.98710028]
[1770520047259,0.52942169,2089.4,2087.3,1.19766335]
[1770520047260,0.52942169,2089.4,2088.3,0.98710028]
[1770520047841,0.52942169,2089.4,2088.4,2.18418896]
[1770520049756,0.56786033,2088.9,2088.2,1.1972008]
[1770520049953,0.56786033,2088.9,2088.0,4.78910855]
[1770520050129,0.04043864,2088.9,2088.0,5.77620883]
[1770520050329,0.04043864,2089.1,2088.1,0.98710028]
[1770520052055,0.04043864,2089.1,2088.2,2.18430361]
[1770520053368,0.04043864,2089.1,2088.3,0.001]
[1770520053670,0.002,2088.9,2088.3,0.001]
[1770520054038,0.002,2088.9,2088.3,0.98810028]
[1770520055164,0.002,2089.1,2088.4,0.98710028]
[1770520055367,0.002,2089.4,2088.5,0.98710028]
[1770520056144,0.002,2089.4,2088.7,0.91021361]
[1770520057373,0.0008,2088.8,2088.7,0.91021361]
[1770520057669,0.002,2089.4,2088.7,0.91021361]
[1770520058045,0.04043864,2089.3,2088.8,1.19685944]
[1770520058563,0.04043864,2089.3,2088.7,1.19687448]
[1770520058954,0.04043864,2089.0,2088.4,1.19704355]
[1770520059267,0.04043864,2088.7,2088.3,0.001]
[1770520059469,0.56786033,2088.7,2088.3,0.001]
[1770520060757,0.04043864,2088.4,2088.3,0.001]
[1770520061154,0.04043864,2089.0,2088.0,0.91121361]
[1770520061365,0.002,2089.8,2088.0,0.91121361]
[1770520061366,0.3776604,2089.6,2088.7,5.87151775]
[1770520061548,0.002,2090.0,2088.8,0.91021361]
[1770520062084,0.002,2090.0,2089.3,0.91021361]
[1770520062438,0.002,2090.0,2089.4,2.10672935]
[1770520062639,0.002,2090.5,2089.5,0.91021361]
[1770520062855,0.002,2090.5,2089.7,4.96130414]
[1770520063063,0.04043864,2090.3,2089.7,4.96130414]
[1770520063271,0.04243864,2090.5,2089.8,0.91021361]
[1770520063462,1e-08,2090.5,2089.8,0.91021361]
[1770520064178,0.04043864,2090.2,2089.5,0.91021361]
[1770520064472,0.03470862,2090.2,2089.6,1.19640122]
[1770520064770,0.03470862,2090.2,2089.5,1.19642517]
[1770520066558,0.03470862,2090.2,2089.5,2.10663878]
[1770520067061,0.002,2090.3,2089.5,2.10663878]
[1770520067378,0.002,2090.3,2089.6,0.91021361]
[1770520069082,0.002,2090.3,2089.8,0.91021361]
[1770520071303,0.002,2090.3,2089.9,1.19622948]
[1770520071453,0.04043864,2090.2,2089.7,1.19634366]
[1770520071653,0.04043864,2090.2,2089.6,1.19637818]
[1770520071859,0.04043864,2090.2,2089.4,0.91021361]
[1770520071860,0.04043864,2090.2,2089.7,1.19633186]
[1770520072559,0.57559019,2090.5,2090.0,0.91021361]
[1770520072560,0.002,2090.5,2090.0,0.91021361]
[1770520072755,0.002,2090.5,2089.8,1.19625076]
[1770520072993,0.002,2090.5,2089.7,1.19633501]
[1770520072994,0.04043864,2090.4,2089.7,1.19633501]
[1770520073295,0.04043864,2090.1,2089.6,1.19636048]
[1770520073496,0.04043864,2090.1,2089.5,0.91021361]
[1770520073497,0.04043864,2089.8,2089.2,0.91021361]
[1770520073698,0.04043864,2089.8,2089.3,1.19656727]
[1770520075356,0.04043864,2090.1,2089.3,2.10678088]
[1770520075558,0.04243864,2090.5,2089.7,0.91021361]
[1770520077491,0.04243864,2090.5,2089.8,1.19628672]
[1770520078191,0.04043864,2090.2,2089.4,0.91021361]
[1770520078385,0.04043864,2090.2,2089.4,2.10668641]
[1770520078572,0.04043864,2089.9,2089.4,2.10668641]
[1770520079091,0.04043864,2090.2,2089.5,1.19643951]
[1770520079291,0.04043864,2089.9,2089.8,0.001]
[1770520084579,0.04043864,2090.2,2089.8,0.001]
[1770520085476,0.04043864,2089.9,2089.8,0.001]
[1770520087486,0.04043864,2090.2,2089.8,0.001]
[1770520087697,0.04043864,2089.9,2089.8,0.001]
[1770520090991,0.04043864,2090.2,2089.8,0.001]
[1770520091190,0.002,2090.0,2089.8,0.001]
[1770520091509,0.002,2090.2,2089.8,0.001]
[1770520092007,0.0008,2090.7,2090.2,0.99444595]
[1770520093204,0.0008,2090.7,2090.3,1.19600057]
[1770520093584,0.04043864,2090.6,2090.2,0.99444595]
[1770520093787,0.04043864,2090.6,2090.0,0.99730141]
[1770520094000,0.04043864,2090.6,2090.0,2.193439]
[1770520094505,0.04043864,2090.6,2090.1,1.19611094]
[1770520095084,0.0008,2090.7,2090.1,2.19341235]
[1770520095276,0.04043864,2090.9,2090.2,0.99730141]
[1770520097097,0.04043864,2090.9,2090.2,2.19332619]
[1770520103614,0.002,2090.7,2090.2,2.19332619]
[1770520104232,0.002,2090.7,2089.1,1.0]
[1770520104233,0.04043864,2090.3,2089.1,1.0]
[1770520104517,0.04043864,2089.6,2089.3,1.0]
[1770520104697,0.04043864,2089.9,2089.3,1.0]
[1770520104898,19.92962948,2091.1,2089.5,1.0]
[1770520104899,1.29811657,2090.8,2089.5,1.0]
[1770520105123,0.04043864,2090.3,2089.5,1.0]
[1770520105424,0.04043864,2090.0,2089.5,1.0]
[1770520106322,0.04043864,2089.7,2089.5,1.0]
[1770520107338,0.04043864,2090.0,2089.5,1.0]
[1770520107494,0.04043864,2089.7,2089.3,1.19655119]
[1770520108131,0.04043864,2089.4,2089.0,2.19401778]
[1770520108809,0.04043864,2089.4,2089.0,1.19671637]
[1770520109016,0.04043864,2089.1,2088.7,0.001]
[1770520109243,1.68268876,2089.0,2088.4,0.0008]
[1770520109531,0.04043864,2088.2,2087.7,4.507e-05]
[1770520110019,0.04043864,2087.9,2087.7,4.507e-05]
[1770520113047,4.78786807,2088.7,2087.7,4.507e-05]
[1770520113048,0.04043864,2088.8,2087.7,0.99734648]
[1770520113239,1.19691674,2088.7,2087.8,1.1974327]
[1770520113554,1.19691674,2088.7,2087.9,0.99730141]
[1770520114450,0.04043864,2088.5,2087.9,0.99730141]
[1770520115624,0.04043864,2088.5,2087.9,1.19833349]
[1770520115933,0.04043864,2088.7,2088.0,0.92890718]
[1770520116628,0.36871862,2088.7,2088.0,0.92890718]
[1770520117163,0.04043864,2087.5,2087.2,0.001]
[1770520117326,0.04043864,2087.3,2086.9,1.19791389]
[1770520117524,0.04043864,2087.3,2087.0,1.19993118]
[1770520117853,0.04043864,2087.3,2086.7,5.72189774]
[1770520118047,0.04043864,2087.6,2086.7,2.1277649]
[1770520118354,0.04043864,2087.3,2086.7,2.1277649]
[1770520120952,0.04043864,2087.0,2086.8,3.347]
[1770520121120,0.04043864,2087.3,2086.8,3.347]
[1770520121324,0.04043864,2087.6,2086.8,4.27590718]
[1770520121747,0.04043864,2087.3,2086.8,4.27590718]
[1770520122351,0.04043864,2087.3,2086.9,1.19794911]
[1770520125660,0.04043864,2087.3,2085.9,12.86139421]
[1770520125661,0.04043864,2086.6,2085.9,5.47537533]
[1770520126682,0.04043864,2086.5,2085.9,5.47537533]
[1770520127490,0.04043864,2086.7,2085.9,5.47537533]
[1770520127786,0.04043864,2086.7,2086.1,0.001]
[1770520128655,0.04043864,2086.4,2086.1,0.001]
[1770520129298,0.04043864,2086.7,2086.1,0.001]
[1770520129454,0.04043864,2086.7,2086.1,2.12831569]
[1770520130291,0.04043864,2086.7,2086.1,0.001]
[1770520130292,1.23850593,2086.7,2086.1,0.001]
[1770520130584,0.04043864,2086.4,2086.1,0.001]
[1770520132465,1.23834181,2087.0,2086.1,0.92990718]
[1770520132678,0.04043864,2086.7,2086.1,0.92990718]
[1770520133288,1.23834181,2087.0,2086.1,0.92990718]
[1770520134069,0.04043864,2086.7,2086.2,1.19835106]
[1770520136080,1.23834532,2087.0,2086.2,2.12725824]
[1770520136378,0.04043864,2087.0,2086.3,0.92890718]
[1770520136680,0.04043864,2087.0,2086.4,3.349]
[1770520137180,0.04043864,2086.7,2086.4,3.349]
[1770520139877,0.04043864,2086.7,2086.4,4.54721106]
[1770520140184,1.19774591,2087.3,2086.4,5.47611824]
[1770520140374,0.04043864,2087.8,2086.5,0.92890718]
[1770520140574,0.04043864,2087.5,2086.5,0.92890718]
[1770520141404,0.002,2086.7,2086.5,0.92890718]
[1770520141605,0.04043864,2087.4,2086.5,0.92890718]
[1770520141800,1.23792776,2087.8,2086.7,0.92890718]
[1770520142102,0.04043864,2087.5,2086.7,0.92890718]
[1770520143091,4.82891267,2088.4,2086.9,0.92890718]
[1770520143290,0.04043864,2087.8,2087.1,0.92890718]
[1770520143674,0.04043864,2088.1,2087.1,0.92890718]
[1770520144098,0.04043864,2087.8,2087.3,0.92890718]
[1770520145703,4.7907534,2088.3,2087.4,0.97617994]
[1770520145704,0.002,2088.3,2087.4,0.97617994]
[1770520146083,0.002,2088.3,2087.6,0.97617994]
[1770520146405,0.002,2088.3,2087.7,3.349]
[1770520146575,0.002,2088.5,2087.8,0.97617994]
[1770520147976,0.04043864,2087.5,2086.7,0.97617994]
[1770520148180,0.04043864,2087.5,2086.8,3.349]
[1770520148181,0.04043864,2086.9,2086.8,3.349]
[1770520148395,0.04043864,2087.2,2086.8,3.09533456]
[1770520148903,1.19764599,2087.5,2086.8,3.09533456]
[1770520149109,1.23808463,2087.5,2086.8,3.09533456]
[1770520149517,0.04043864,2087.2,2086.8,3.09533456]
[1770520149714,1.23808463,2087.5,2086.8,3.09533456]
[1770520151808,0.04043864,2088.0,2086.9,0.97617994]
[1770520152214,1.19737535,2087.9,2087.1,0.97617994]
[1770520152401,1.23779853,2088.0,2087.1,0.97617994]
[1770520152986,5.11617369,2088.7,2087.3,0.98826873]
[1770520152987,1.23744503,2088.6,2087.3,0.98826873]
[1770520153308,1.19904145,2088.5,2087.5,0.98826873]
[1770520153613,0.002,2088.5,2087.5,0.98826873]
[1770520153917,0.002,2088.1,2087.5,0.98826873]
[1770520154210,0.002,2088.5,2087.6,2.18581615]
[1770520154410,0.002,2088.3,2087.7,0.98826873]
[1770520154585,0.002,2088.5,2087.7,0.98826873]
[1770520155110,0.04043864,2088.6,2087.8,0.98826873]
[1770520155486,1.23741411,2088.6,2087.8,0.98826873]
[1770520156607,1.23741411,2088.6,2087.9,1.19737535]
[1770520156811,1.23741411,2088.6,2088.0,3.349]
[1770520159023,0.04043864,2088.3,2088.0,3.349]
[1770520159598,0.04043864,2088.6,2088.0,4.54631774]
[1770520159797,1.23741493,2088.6,2088.0,3.349]
[1770520161020,0.04043864,2088.6,2088.0,4.54630578]
[1770520161303,1.52523645,2088.7,2088.0,5.53457451]
[1770520161504,1.52523645,2088.7,2087.3,4.79067531]
[1770520161505,0.04043864,2088.0,2087.0,2.18713208]
[1770520161824,0.04043864,2087.7,2087.1,3.348]
[1770520163008,1.19740423,2087.9,2087.1,4.54579222]
[1770520163328,1.19740423,2087.9,2087.1,5.53406095]
[1770520165811,0.04043864,2087.7,2087.1,3.348]
[1770520166429,0.04043864,2087.7,2087.3,0.001]
[1770520167224,1.19930868,2088.1,2087.3,0.98926873]
[1770520167431,0.002,2088.3,2087.6,1.19754742]
[1770520167628,4.78830894,2088.5,2087.7,4.33626873]
[1770520167967,1.19703136,2088.5,2087.8,0.98826873]
[1770520168136,1.19701691,2088.6,2087.8,0.98826873]
[1770520168636,0.32827998,2088.7,2087.9,4.96326998]
[1770520168811,0.04043864,2087.8,2087.3,0.001]
[1770520169006,0.03470743,2087.8,2087.4,3.348]
[1770520172114,0.03470743,2087.8,2087.4,2.67429131]
[1770520173037,1.19736043,2088.0,2087.4,2.67429131]
[1770520174228,0.04043864,2088.0,2087.4,2.67429131]
[1770520175551,0.04043864,2088.0,2087.4,3.87194783]
[1770520175851,0.04043864,2088.0,2086.2,14.69495883]
[1770520175852,0.9507522,2087.4,2086.2,0.001]
[1770520176023,0.04043864,2087.0,2086.7,0.0008]
[1770520176229,0.04043864,2086.6,2086.2,0.001]
[1770520176548,0.04043864,2086.3,2085.7,5.65076638]
[1770520176750,0.04043864,2086.5,2085.7,4.4521326]
[1770520177055,0.04043864,2086.5,2085.7,3.48717056]
[1770520177220,0.04043864,2086.5,2085.6,6.16192266]
[1770520177420,0.04043864,2086.2,2085.6,6.16192266]
[1770520178328,4.79194493,2086.9,2085.6,6.16192266]
[1770520178329,0.04043864,2087.1,2085.6,7.1268847]
[1770520178531,0.04043864,2086.8,2085.8,0.96596204]
[1770520179346,0.04043864,2086.7,2085.8,0.96596204]
[1770520179748,0.04043864,2086.7,2086.5,0.001]
[1770520179923,0.04043864,2087.1,2086.5,0.001]
[1770520182448,0.04043864,2087.1,2085.8,0.001]
[1770520182449,0.04043864,2086.3,2085.8,0.001]
[1770520182633,0.04043864,2086.3,2085.5,1.19970024]
[1770520182634,0.04043864,2086.0,2085.5,1.19970024]
[1770520183046,0.04043864,2086.0,2085.5,1.19870909]
[1770520183736,0.04043864,2086.0,2085.4,1.19877626]
[1770520184637,0.04043864,2086.0,2085.4,1.19881077]
[1770520184949,0.04043864,2086.3,2085.5,0.96496204]
[1770520186926,0.04043864,2086.0,2085.5,0.96496204]
[1770520187126,0.04043864,2086.0,2085.4,1.1988105]
[1770520188760,0.04043864,2086.0,2085.0,4.79714506]
[1770520188761,0.04043864,2085.6,2084.7,1.20019237]
[1770520189056,0.04043864,2085.3,2084.7,0.001]
[1770520189558,4.7951071,2085.5,2084.7,0.001]
[1770520189559,1.19875329,2085.5,2084.7,0.001]
[1770520189757,0.04043864,2085.3,2084.7,0.001]
[1770520190238,1.23916659,2085.6,2084.7,0.001]
[1770520190440,4.79344897,2086.2,2084.7,0.96596204]
[1770520190639,0.04043864,2085.7,2084.7,0.96596204]
[1770520191354,0.04043864,2086.0,2085.0,4.96326998]
[1770520191560,0.04043864,2086.0,2085.0,5.92823202]
[1770520192461,0.04043864,2086.0,2085.1,0.96496204]
[1770520193068,0.04043864,2085.7,2085.1,0.96496204]
[1770520194169,1.23894141,2086.0,2085.2,1.19892576]
[1770520195782,0.04043864,2086.0,2085.2,1.19892576]
[1770520196949,0.04043864,2086.0,2084.9,4.7972767]
[1770520196950,0.04043864,2085.1,2084.9,0.001]
[1770520197271,0.04043864,2085.7,2084.9,1.19908682]
[1770520197562,0.04043864,2085.6,2085.0,2.19901088]
[1770520197769,0.04043864,2085.6,2085.0,2.19903262]
[1770520197941,0.04043864,2085.6,2085.0,1.0]
[1770520199272,1.23916501,2085.6,2085.0,1.0]
[1770520199867,0.04043864,2085.6,2085.0,2.19899074]
[1770520200540,0.04043864,2085.3,2084.8,1.0]
[1770520200737,0.04043864,2085.3,2084.9,1.1990936]
[1770520200958,1.23913457,2085.6,2084.9,1.1990936]
[1770520201162,0.04043864,2085.3,2084.9,1.1990936]
[1770520201373,1.23913457,2085.6,2084.9,1.1990936]
[1770520201676,0.04043864,2085.6,2085.0,1.0]
[1770520202280,0.04043864,2085.7,2085.0,1.0]
[1770520203169,0.04043864,2085.6,2085.0,1.0]
[1770520203353,0.04043864,2085.6,2085.1,2.19898326]
[1770520203758,0.04043864,2085.6,2085.1,1.0]
[1770520204291,0.04043864,2085.3,2085.1,1.0]
[1770520204460,0.04043864,2085.3,2084.6,0.001]
[1770520204655,0.04043864,2085.2,2084.9,0.001]
[1770520206688,0.002,2085.5,2084.9,1.001]
[1770520206874,0.04043864,2085.4,2084.9,1.001]
[1770520207077,1.24111645,2085.7,2084.9,1.001]
[1770520207559,1.24111645,2085.7,2085.1,1.0]
[1770520207765,0.04043864,2085.4,2085.1,1.0]
[1770520210286,1.24111758,2085.7,2085.1,1.0]
[1770520210886,1.24111758,2085.7,2084.9,0.001]
[1770520210887,0.04043864,2085.4,2084.9,0.001]
[1770520211787,1.23925191,2085.4,2084.9,0.001]
[1770520211961,0.002,2085.7,2084.9,1.001]
[1770520212294,0.04043864,2085.5,2084.9,1.001]
[1770520213489,1.20064021,2085.7,2084.9,1.001]
[1770520213490,0.002,2085.7,2085.1,4.96326998]
[1770520213666,0.04043864,2086.1,2085.5,1.0]
[1770520214388,1.19823619,2086.4,2085.5,1.0]
[1770520214592,0.04043864,2086.2,2085.5,1.0]
[1770520215278,0.04043864,2086.2,2085.1,1.19898171]
[1770520215279,0.04043864,2085.9,2085.1,1.19898171]
[1770520215463,0.04043864,2085.6,2085.1,1.0]
[1770520216003,1.23913559,2085.6,2084.9,1.20005507]
[1770520216180,0.04043864,2085.3,2084.9,0.001]
[1770520216890,0.04043864,2085.3,2085.1,0.001]
[1770520217203,0.04243864,2085.3,2085.1,0.001]
[1770520217881,0.04243864,2085.3,2084.9,0.001]
[1770520218084,0.04043864,2084.7,2084.4,0.001]
[1770520218283,0.04043864,2084.7,2084.4,0.002]
[1770520218489,0.04043864,2084.9,2084.4,0.002]
[1770520218884,1.19892576,2085.2,2084.4,0.002]
[1770520219078,0.04043864,2084.9,2084.4,0.002]
[1770520219484,0.04043864,2084.6,2084.2,1.003]
[1770520219689,0.04043864,2084.9,2084.2,1.003]
[1770520219886,0.04043864,2084.6,2084.2,0.003]
[1770520220572,1.23971003,2084.6,2084.2,0.003]
[1770520221770,0.04043864,2084.3,2084.2,0.003]
[1770520221973,0.04043864,2084.6,2084.2,0.003]
[1770520222173,1.23957521,2084.9,2084.2,1.003]
[1770520222387,0.04043864,2084.6,2084.2,1.003]
[1770520223496,1.23957521,2084.9,2084.2,1.003]
[1770520224780,0.04043864,2084.9,2084.3,1.0]
[1770520225700,1.24130954,2085.3,2084.3,1.0]
[1770520225898,0.04243864,2085.3,2084.3,1.0]
[1770520226100,1.24131989,2085.3,2084.3,1.0]
[1770520226301,1.24131492,2085.3,2084.5,1.0]
[1770520226502,1.24132793,2085.3,2084.5,1.0]
[1770520227002,1.24131,2085.3,2084.5,1.0]
[1770520227687,0.04043864,2085.2,2084.5,1.0]
[1770520227886,0.002,2085.3,2084.5,1.0]
[1770520228092,0.04243864,2085.3,2084.5,1.0]
[1770520228293,0.04243864,2085.3,2084.7,1.0]
[1770520229785,0.002,2085.1,2084.7,1.0]
[1770520230492,0.002,2085.1,2084.8,1.0]
[1770520232880,0.002,2085.3,2084.9,1.0]
[1770520233086,0.002,2085.5,2084.9,1.0]
[1770520233781,1.23899048,2085.9,2084.9,1.0]
[1770520234099,0.04043864,2085.9,2084.9,1.0]
[1770520234675,4.79371498,2086.1,2085.0,1.0]
[1770520234676,1.19843023,2086.1,2085.0,1.0]
[1770520234907,0.04043864,2085.9,2085.0,1.0]
[1770520235104,0.04043864,2085.9,2085.2,1.0]
[1770520237085,1.24079023,2086.2,2085.4,1.0]
[1770520237497,0.04243864,2086.2,2085.4,1.0]
[1770520237809,1.24080014,2086.2,2085.4,1.0]
[1770520239906,1.24080014,2086.2,2085.5,1.19875329]
[1770520240204,1.24080014,2086.2,2085.5,2.19875329]
[1770520240587,0.002,2086.2,2085.6,1.0]
[1770520240777,0.04043864,2086.1,2085.6,1.0]
[1770520242302,0.04043864,2085.8,2085.4,2.19976679]
[1770520243594,0.04043864,2085.8,2085.5,1.19874712]
[1770520244408,0.002,2086.0,2085.4,2.19977014]
[1770520245016,0.002,2086.0,2085.1,0.001]
[1770520245017,0.04043864,2085.4,2085.1,0.001]
[1770520246309,1.23928918,2085.4,2085.1,0.001]
[1770520247010,1.2391197,2085.7,2085.1,0.001]
[1770520247203,0.04043864,2085.4,2085.1,0.001]
[1770520251707,0.002,2086.0,2085.1,1.001]
[1770520253911,0.002,2086.0,2085.3,1.0]
[1770520255314,0.002,2086.0,2085.3,1.001]
[1770520255613,0.002,2085.8,2085.3,1.001]
[1770520257097,0.002,2086.4,2085.3,1.001]
[1770520257098,0.002,2086.4,2085.5,1.0]
[1770520259614,0.002,2086.4,2085.7,1.0]
[1770520261821,0.04043864,2086.3,2085.8,2.19858088]
[1770520262720,0.04043864,2086.3,2085.7,1.19862376]
[1770520262897,0.04043864,2086.3,2085.7,2.19862376]
[1770520264220,1.20027962,2086.4,2085.5,2.1987492]
[1770520264221,0.04043864,2086.2,2085.5,2.1987492]
[1770520264404,0.04043864,2086.2,2085.6,1.19868138]
[1770520264717,0.04043864,2086.2,2085.7,1.19863507]
[1770520266513,0.04043864,2086.2,2085.6,5.79477918]
[1770520267012,0.002,2086.4,2085.7,1.0]
[1770520267200,0.002,2086.6,2085.7,1.0]
[1770520268530,0.04243864,2086.6,2085.7,1.0]
[1770520268832,0.04043864,2085.7,2085.6,1.1986936]
[1770520269123,0.04043864,2086.3,2085.8,1.0]
[1770520269124,0.002,2086.2,2085.8,1.0]
[1770520269425,0.04043864,2086.3,2085.8,1.0]
[1770520269622,0.04323864,2086.6,2085.8,1.0]
[1770520269922,0.04043864,2086.3,2085.8,1.0]
[1770520270712,0.04043864,2086.3,2085.9,1.19852341]
[1770520271508,0.0008,2086.3,2085.9,2.19852341]
[1770520271706,0.04243864,2086.6,2085.9,2.19852341]
[1770520273798,0.002,2086.6,2086.0,1.0]
[1770520273999,0.04043864,2086.9,2086.0,1.0]
[1770520274422,0.04043864,2086.6,2086.0,1.0]
[1770520274593,0.04043864,2086.6,2086.1,1.19840851]
[1770520274797,0.04043864,2086.9,2086.1,1.19840851]
[1770520275022,0.04043864,2086.9,2086.1,2.19840851]
[1770520275924,0.002,2087.1,2086.2,1.0]
[1770520276622,0.04043864,2087.3,2086.3,1.19829362]
[1770520276824,0.04043864,2087.3,2086.4,1.0]
[1770520277632,0.0008,2087.6,2086.5,1.0]
[1770520277803,0.04043864,2087.2,2086.5,1.0]
[1770520278208,0.0008,2087.6,2086.5,1.0]
[1770520278408,0.04043864,2087.3,2086.5,1.0]
[1770520278924,0.04043864,2087.7,2086.7,1.0]
[1770520279306,0.002,2087.8,2087.0,1.0]
[1770520279506,0.04043864,2087.7,2087.0,1.0]
[1770520281034,0.04043864,2087.7,2087.1,2.19783431]
[1770520281731,0.0008,2087.9,2087.2,1.0]
[1770520281936,0.002,2088.0,2087.2,0.999]
[1770520283201,0.002,2088.0,2087.3,2.19671954]
[1770520284117,0.002,2088.0,2087.4,0.999]
[1770520285430,0.002,2088.0,2087.5,1.19760479]
[1770520285635,0.002,2088.0,2087.5,2.19660479]
[1770520288940,0.04043864,2087.5,2087.0,1.19788931]
[1770520289140,0.04043864,2087.8,2087.2,1.19774733]
[1770520289436,0.04043864,2087.5,2087.1,0.999]
[1770520289643,0.04043864,2087.5,2087.1,2.19683319]
[1770520289812,0.04043864,2087.5,2087.1,1.19783319]
[1770520292142,0.04043864,2087.5,2087.0,1.19787679]
[1770520293750,0.04043864,2086.9,2086.3,4.79301523]
[1770520293949,0.04043864,2086.9,2086.3,5.79201523]
[1770520294443,0.04043864,2086.9,2086.2,4.96205826]
[1770520294649,0.04043864,2086.6,2086.0,1.19843322]
[1770520294852,0.04043864,2086.3,2086.0,1.19843322]
[1770520295016,0.04043864,2086.6,2086.1,1.1984069]
[1770520295342,0.04043864,2086.6,2086.0,1.19842292]
[1770520295639,0.04043864,2086.6,2086.1,0.001]
[1770520295640,0.04043864,2086.3,2086.1,0.001]
[1770520296235,0.04043864,2086.9,2086.1,1.0]
[1770520296546,1.23839107,2086.9,2086.1,1.0]
[1770520296920,0.04043864,2086.6,2086.1,1.0]
[1770520297317,0.04043864,2086.6,2086.1,0.001]
[1770520299630,0.04043864,2086.3,2086.1,0.001]
[1770520299847,0.04043864,2086.6,2086.1,0.001]
[1770520301818,1.23839264,2086.9,2086.1,1.0]
[1770520302543,0.04043864,2086.8,2086.2,2.19735106]
[1770520303870,0.04043864,2086.8,2086.3,0.999]
[1770520304628,0.04043864,2087.0,2086.3,0.999]
[1770520304834,0.04043864,2087.2,2086.5,0.999]
[1770520306751,1.23824611,2087.2,2086.5,0.999]
[1770520307047,0.04043864,2086.9,2086.5,0.999]
[1770520307253,0.04043864,2086.9,2086.5,2.19717604]
[1770520307676,0.04043864,2086.9,2086.3,0.999]
[1770520307829,0.04043864,2086.9,2086.3,0.001]
[1770520308236,0.04043864,2086.9,2086.3,1.19928782]
[1770520309439,0.04043864,2086.9,2086.3,0.001]
[1770520309831,1.23824632,2087.2,2086.3,1.0]
[1770520310734,0.04043864,2086.9,2086.3,1.0]
[1770520311337,0.04043864,2087.2,2086.3,1.0]
[1770520311539,0.0008,2087.4,2086.7,0.999]
[1770520312834,0.04243864,2087.5,2086.7,0.999]
[1770520313762,0.04243864,2087.5,2086.9,0.999]
[1770520316035,0.04243864,2087.5,2086.8,1.19800651]
[1770520316036,0.04243864,2087.5,2087.0,2.19689171]
[1770520316255,0.04243864,2087.5,2087.0,0.999]
[1770520316840,0.04243864,2087.5,2086.6,2.1970921]
[1770520316841,0.04043864,2086.9,2086.6,2.1970921]
[1770520317039,0.04043864,2087.2,2086.6,0.999]
[1770520317358,0.04043864,2086.9,2086.6,0.999]
[1770520317532,0.04043864,2087.2,2086.6,0.999]
[1770520318467,1.23824515,2087.2,2086.6,0.999]
[1770520319051,0.04043864,2086.9,2086.6,0.999]
[1770520319369,1.23824515,2087.2,2086.6,0.999]
[1770520320749,0.04043864,2086.9,2086.4,0.999]
[1770520321063,0.04043864,2086.9,2086.5,0.001]
[1770520321742,0.04243864,2087.2,2086.7,0.999]
[1770520321981,0.002,2087.5,2086.9,0.999]
[1770520322146,1.19961101,2087.5,2086.9,0.999]
[1770520322841,0.04043864,2087.4,2086.9,0.999]
[1770520323168,0.04043864,2087.4,2086.7,7.15909247]
[1770520323549,0.04043864,2087.4,2086.8,1.1980029]
[1770520323945,0.04043864,2087.4,2086.8,2.1970029]
[1770520324283,0.04043864,2087.4,2086.9,0.999]
[1770520324450,0.002,2087.5,2086.9,0.999]
[1770520324451,0.002,2087.5,2087.0,0.999]
[1770520324781,1.19755318,2087.6,2087.0,0.999]
[1770520325453,0.04043864,2087.4,2086.7,4.96205826]
[1770520325642,0.04043864,2087.4,2086.7,5.96105826]
[1770520325849,0.04043864,2087.1,2086.7,5.96105826]
[1770520326659,0.04043864,2087.1,2086.5,0.001]